bitfinex/quotes_ETHUSD_20260113
["timestamp","ask_amount","ask_price","bid_price","bid_amount"]
[1768313062908,9.48580461,3133.9,3132.6,3.44020913]
[1768313063458,9.48580461,3133.9,3133.2,0.002]
[1768313065048,6.3820282,3133.8,3133.2,0.002]
[1768313065626,3.1910141,3133.8,3133.2,0.002]
[1768313066320,7.02021788,3133.8,3133.2,0.002]
[1768313075354,7.02021788,3133.8,3133.2,0.00199904]
[1768313079682,17.39182899,3133.8,3133.2,0.00199904]
[1768313080071,14.20081489,3133.8,3133.2,0.00199904]
[1768313087081,7.02021788,3133.8,3133.2,0.00199904]
[1768313087280,1.34512179,3133.7,3133.2,0.00199904]
[1768313088179,0.001,3133.5,3133.2,0.00199904]
[1768313088901,0.001,3133.5,3133.2,7.36058476]
[1768313089980,0.29909093,3133.4,3133.2,7.36058476]
[1768313090180,0.001,3133.5,3133.2,7.36058476]
[1768313090380,0.2990906,3133.4,3133.2,7.36058476]
[1768313090580,0.001,3133.5,3133.2,7.36058476]
[1768313090819,0.2991055,3133.4,3133.2,7.36058476]
[1768313091103,0.001,3133.5,3133.2,7.36058476]
[1768313091269,0.29910545,3133.4,3133.2,7.36058476]
[1768313091606,0.001,3133.5,3133.2,0.00199904]
[1768313091773,0.29911637,3133.4,3133.2,0.00199904]
[1768313092097,0.63932319,3133.5,3133.2,0.00199904]
[1768313092318,0.299113,3133.4,3133.2,0.00199904]
[1768313092469,3.19238591,3133.5,3133.2,0.00199904]
[1768313092670,0.2991167,3133.4,3133.2,0.00199904]
[1768313093019,3.19238591,3133.5,3133.2,0.00199904]
[1768313093174,0.29912324,3133.4,3133.2,0.00199904]
[1768313093370,6.431,3133.9,3133.4,7.35858572]
[1768313093594,0.29915045,3133.8,3133.4,7.35858572]
[1768313093896,6.431,3133.9,3133.4,8.0946442]
[1768313094105,0.29916153,3133.8,3133.4,8.0946442]
[1768313094403,6.431,3133.9,3133.4,8.0946442]
[1768313094573,0.29903456,3133.8,3133.4,8.0946442]
[1768313094775,6.431,3133.9,3133.4,8.0946442]
[1768313094982,0.29903456,3133.8,3133.4,8.0946442]
[1768313095312,9.62193074,3133.9,3133.4,8.0946442]
[1768313095484,0.29897806,3133.8,3133.4,7.35858572]
[1768313095683,9.62193074,3133.9,3133.4,7.35858572]
[1768313095884,0.29897738,3133.8,3133.4,7.35858572]
[1768313096078,9.62193074,3133.9,3133.4,7.35858572]
[1768313096283,0.29897733,3133.8,3133.4,7.35858572]
[1768313096488,9.62193074,3133.9,3133.4,7.35858572]
[1768313096691,0.29893167,3133.8,3133.4,7.35858572]
[1768313096887,9.62193074,3133.9,3133.4,7.35858572]
[1768313097106,0.29893167,3133.8,3133.4,7.35858572]
[1768313097312,9.62193074,3133.9,3133.4,7.35858572]
[1768313097608,0.2988917,3133.8,3133.4,7.35858572]
[1768313097809,9.62193074,3133.9,3133.4,7.35858572]
[1768313098191,6.431,3133.9,3133.5,7.35858572]
[1768313099714,9.62033734,3134.5,3133.8,12.24804963]
[1768313099914,3.48923614,3134.4,3133.8,7.35858572]
[1768313100211,0.2987676,3134.3,3133.8,7.35858572]
[1768313100404,3.19046854,3134.4,3133.8,7.35858572]
[1768313100584,0.29875882,3134.3,3133.8,7.35858572]
[1768313100779,3.19046854,3134.4,3133.8,7.35858572]
[1768313100980,0.29875882,3134.3,3133.8,7.35858572]
[1768313101227,3.19046854,3134.4,3133.8,7.35858572]
[1768313101404,0.29864905,3134.3,3133.8,7.35858572]
[1768313101601,9.62034856,3134.5,3133.8,7.35858572]
[1768313101813,0.29864149,3134.4,3133.8,10.54956208]
[1768313102020,6.43,3134.5,3134.2,7.35858572]
[1768313102178,0.00080608,3135.1,3134.4,7.35858572]
[1768313102382,3.18984234,3135.0,3134.4,7.35058572]
[1768313103124,3.19101465,3134.8,3134.4,7.35058572]
[1768313103330,3.19101465,3134.8,3134.1,4.88946391]
[1768313103331,3.19101465,3134.8,3134.1,7.35858572]
[1768313103492,0.001,3134.8,3134.1,7.35858572]
[1768313103889,0.001,3134.8,3134.2,3.19060685]
[1768313104734,0.001,3134.8,3134.3,4.88946391]
[1768313105194,0.001,3134.8,3134.2,10.54919257]
[1768313105393,0.001,3134.8,3134.2,13.73979942]
[1768313105615,0.001,3134.8,3134.5,4.88946391]
[1768313106135,0.001,3134.8,3134.5,8.07971495]
[1768313106303,0.001,3134.8,3134.4,7.5927299]
[1768313107328,0.001,3134.8,3134.4,10.78311255]
[1768313107539,0.001,3134.8,3134.6,7.5927299]
[1768313108235,0.00080441,3135.5,3134.8,7.5927299]
[1768313108409,0.00080441,3135.5,3135.1,12.48219381]
[1768313108611,3.18976051,3135.9,3135.2,7.5927299]
[1768313108612,0.00081334,3135.9,3135.2,7.5927299]
[1768313108927,0.00081334,3135.9,3135.3,4.88946391]
[1768313109312,0.00081334,3135.9,3135.3,12.48219381]
[1768313109524,0.00081334,3135.9,3135.5,7.5927299]
[1768313109736,9.61840734,3136.4,3135.7,4.88946391]
[1768313109898,3.18840734,3136.4,3135.7,12.48219381]
[1768313110101,3.18831195,3136.5,3135.9,4.88946391]
[1768313110302,0.24980392,3136.6,3136.1,4.88946391]
[1768313110500,0.00080392,3136.6,3136.3,4.88946391]
[1768313110725,0.00080392,3136.6,3136.1,8.00422704]
[1768313110726,0.00080392,3136.6,3136.2,12.48219381]
[1768313111032,6.37716072,3136.6,3136.0,0.248]
[1768313111207,6.37716072,3136.6,3135.6,12.48299933]
[1768313111413,3.18898232,3136.6,3135.7,3.43706499]
[1768313111637,6.37716072,3136.6,3135.7,1.35106004]
[1768313112148,0.001,3136.1,3135.6,7.59353542]
[1768313112431,0.001,3136.1,3135.7,3.43707581]
[1768313112619,0.001,3136.1,3135.7,7.8407299]
[1768313112819,0.001,3136.1,3135.7,11.02976607]
[1768313113023,0.001,3136.1,3135.7,7.8407299]
[1768313113320,0.001,3136.1,3135.7,11.02979634]
[1768313113526,0.001,3136.1,3135.8,7.5927299]
[1768313114003,0.001,3136.1,3135.6,0.00080552]
[1768313114569,7.21463304,3135.6,3134.7,0.00080616]
[1768313114712,7.21463304,3135.4,3134.7,0.00080616]
[1768313116308,6.37897488,3135.3,3134.7,0.00080616]
[1768313116534,1.35936079,3135.2,3134.7,0.00080616]
[1768313116734,8.91053095,3135.2,3134.7,0.00080616]
[1768313117249,8.91053095,3135.2,3134.3,0.00081375]
[1768313117449,0.00080616,3135.1,3134.3,0.00081375]
[1768313118616,3.19049707,3135.1,3134.4,7.08723505]
[1768313118937,0.00080616,3135.1,3134.5,0.70880488]
[1768313119665,0.00080616,3135.1,3134.3,0.00081375]
[1768313119809,0.00080616,3135.1,3134.4,0.248]
[1768313121310,0.00080616,3135.1,3134.4,10.52562352]
[1768313121509,0.00080616,3135.1,3134.5,7.08723505]
[1768313122105,0.00080616,3135.1,3134.7,7.08723505]
[1768313122341,0.00080616,3135.1,3134.7,7.79914875]
[1768313122717,0.00080616,3135.1,3134.7,0.248]
[1768313123137,0.00080616,3135.1,3134.5,0.248]
[1768313123346,0.00080616,3135.1,3134.3,3.19127118]
[1768313124051,0.00080616,3135.1,3134.4,7.08723505]
[1768313124348,0.001,3134.8,3134.4,7.08723505]
[1768313124640,0.001,3134.8,3134.5,7.08723505]
[1768313125732,10.73981726,3136.2,3134.7,7.08804129]
[1768313125934,10.73981726,3136.2,3134.9,7.08723505]
[1768313126129,3.18887719,3135.9,3134.9,7.08723505]
[1768313126650,3.18887719,3135.9,3135.1,7.08723505]
[1768313126814,3.18960889,3136.0,3135.1,7.79914835]
[1768313127234,0.00080552,3136.0,3135.1,7.79914835]
[1768313127713,0.00080552,3136.0,3135.2,13.46641341]
[1768313127911,0.00080552,3136.0,3135.4,7.08723505]
[1768313129549,7.55197408,3136.6,3135.6,0.0008056]
[1768313129747,7.55117016,3136.5,3135.6,0.0008056]
[1768313130043,3.18898823,3136.6,3135.6,0.0008056]
[1768313130044,0.00080392,3136.6,3135.7,7.08723505]
[1768313130254,3.1889823,3136.6,3135.8,7.33523505]
[1768313131070,3.1889823,3136.6,3135.6,0.6387633]
[1768313131071,6.37716068,3136.6,3135.6,0.6387633]
[1768313131232,13.92833084,3136.6,3135.8,0.248]
[1768313131434,7.55117016,3136.5,3135.6,0.0008056]
[1768313131767,13.92790782,3136.4,3135.6,0.0008056]
[1768313133453,7.55117016,3136.3,3135.6,0.0008056]
[1768313133774,7.55117016,3136.1,3135.6,0.0008056]
[1768313134066,1.39283145,3136.0,3135.6,0.0008056]
[1768313134464,8.94400161,3136.0,3135.6,0.0008056]
[1768313134663,8.94400161,3136.0,3135.1,0.248]
[1768313134664,8.94480721,3136.0,3135.1,0.248]
[1768313134867,8.94480721,3136.0,3134.9,3.18984084]
[1768313135043,8.94480721,3136.0,3134.7,0.00080624]
[1768313135246,7.20796702,3135.8,3134.7,0.00080624]
[1768313135450,7.20796702,3135.8,3134.8,3.18992996]
[1768313135756,7.20796702,3135.6,3134.7,0.00280624]
[1768313136880,7.20796702,3135.6,3134.5,3.19023333]
[1768313137185,0.00080624,3135.1,3134.5,3.1902901]
[1768313137868,0.00080624,3135.1,3134.4,3.19239934]
[1768313137869,0.00080624,3135.1,3134.4,0.002]
[1768313138074,0.00080624,3135.1,3134.4,0.25]
[1768313139378,7.20877326,3135.1,3134.4,0.25]
[1768313139964,7.20877326,3135.1,3134.4,3.4403188]
[1768313140281,7.20877326,3135.1,3134.4,3.1923188]
[1768313140486,0.00080624,3135.1,3134.4,14.71152892]
[1768313141066,0.00080624,3135.1,3134.4,7.02108706]
[1768313141476,0.00080624,3135.1,3134.5,0.248]
[1768313142190,0.00080624,3135.1,3134.6,3.1901997]
[1768313143096,7.20877326,3135.1,3134.4,0.640365]
[1768313143386,7.20877326,3135.1,3134.4,0.002]
[1768313144183,7.20796702,3134.9,3134.4,0.002]
[1768313145575,0.00080624,3135.1,3134.4,0.002]
[1768313145776,7.20877326,3135.1,3134.4,0.002]
[1768313145977,0.00080624,3135.1,3134.4,0.002]
[1768313146169,0.00080624,3135.1,3134.4,3.19240326]
[1768313146399,0.00080624,3135.1,3134.5,0.03190301]
[1768313146708,0.00080624,3135.1,3134.5,0.27990301]
[1768313146996,0.00080624,3135.1,3134.5,0.248]
[1768313147200,0.00080624,3135.1,3134.6,0.66308065]
[1768313148074,0.00080624,3135.1,3134.7,6.38019586]
[1768313148896,0.00080624,3135.1,3134.7,6.38219586]
[1768313150097,0.001,3135.3,3134.7,6.38300218]
[1768313150398,0.001,3135.3,3134.8,0.97322145]
[1768313151094,0.001,3135.3,3134.9,7.69044186]
[1768313151297,0.001,3135.3,3135.0,0.248]
[1768313152412,0.001,3135.3,3134.7,0.00280632]
[1768313152413,0.001,3135.3,3134.8,0.248]
[1768313152636,7.20896702,3135.3,3134.7,0.25080632]
[1768313152799,0.7208967,3135.2,3134.7,0.25080632]
[1768313154530,3.91052204,3135.2,3134.7,0.25080632]
[1768313155532,0.7208967,3135.2,3134.7,0.25080632]
[1768313156329,3.91054503,3135.2,3134.7,0.00280632]
[1768313159245,0.7208967,3135.2,3134.7,0.00280632]
[1768313160229,3.91051132,3135.2,3134.7,0.00280632]
[1768313160618,0.7208967,3135.2,3134.7,0.00280632]
[1768313161133,0.7208967,3135.2,3135.0,0.002]
[1768313161643,3.91049374,3135.2,3135.0,0.002]
[1768313161817,0.7208967,3135.2,3135.0,0.002]
[1768313163573,8.31990689,3135.1,3135.0,0.002]
[1768313164737,8.31990689,3135.1,3134.7,0.00280632]
[1768313165658,11.50961821,3135.1,3134.7,0.00280632]
[1768313166024,8.31990689,3135.1,3134.7,0.00280632]
[1768313166448,11.50961246,3135.1,3134.7,0.00280632]
[1768313166769,1.5420123,3135.0,3134.7,0.00280632]
[1768313168068,4.73189616,3135.0,3134.7,0.00280632]
[1768313169265,1.5420123,3135.0,3134.7,0.00280632]
[1768313169663,7.01485971,3134.9,3134.6,1e-08]
[1768313170539,10.20484761,3134.9,3134.6,1e-08]
[1768313176582,3.1899879,3134.9,3134.6,1e-08]
[1768313176878,10.26634934,3135.0,3134.6,1e-08]
[1768313179052,13.45618233,3135.0,3134.6,1e-08]
[1768313179253,1.34569887,3134.9,3134.6,1e-08]
[1768313180274,8.42221522,3134.9,3134.6,1e-08]
[1768313181402,11.61217113,3134.9,3134.6,1e-08]
[1768313181606,8.42221522,3134.9,3134.6,1e-08]
[1768313182275,1.34569887,3134.9,3134.6,1e-08]
[1768313182698,4.53560548,3134.9,3134.6,1e-08]
[1768313183028,0.77254013,3134.8,3134.6,1e-08]
[1768313184119,0.77254013,3134.8,3134.6,7.49606777]
[1768313184277,3.19054587,3135.1,3134.6,7.49606777]
[1768313184609,0.29837249,3135.0,3134.6,1e-08]
[1768313184815,3.19054587,3135.1,3134.6,1e-08]
[1768313184975,0.29825497,3135.0,3134.6,1e-08]
[1768313185169,4.53630362,3135.1,3134.6,1e-08]
[1768313185404,0.2983537,3135.0,3134.6,1e-08]
[1768313185606,13.45680177,3135.1,3134.6,0.24800001]
[1768313185924,0.29848578,3135.0,3134.6,0.24800001]
[1768313186079,3.19054587,3135.1,3134.6,0.24800001]
[1768313186408,0.001,3134.7,3134.6,0.24800001]
[1768313186777,0.001,3135.3,3134.7,7.49606776]
[1768313187002,10.26701278,3135.3,3134.7,0.0008064]
[1768313187178,7.07651635,3135.0,3134.7,0.0008064]
[1768313187907,7.07651635,3135.2,3134.7,0.0008064]
[1768313188079,3.19051337,3135.3,3134.7,0.0008064]
[1768313188281,0.29846163,3135.2,3134.7,0.0008064]
[1768313188491,3.19051337,3135.3,3134.7,0.0008064]
[1768313188684,0.29848725,3135.2,3134.7,0.0008064]
[1768313188899,3.19051337,3135.3,3134.7,0.0008064]
[1768313189096,0.29848648,3135.2,3134.7,0.0008064]
[1768313189407,0.001,3135.3,3134.9,7.49606776]
[1768313189817,6.43,3135.8,3135.0,7.49606776]
[1768313190008,7.07732195,3136.0,3135.3,7.49606776]
[1768313190009,0.2985539,3135.7,3135.3,7.49606776]
[1768313190213,6.4308056,3136.0,3135.3,7.49606776]
[1768313190426,0.29841019,3135.9,3135.3,7.49606776]
[1768313190614,6.4308056,3136.0,3135.4,7.74406776]
[1768313190907,0.29841191,3135.9,3135.4,7.74406776]
[1768313191210,12.8083791,3136.0,3135.4,0.248]
[1768313191415,10.93379033,3136.0,3135.4,0.248]
[1768313192508,6.4308056,3136.0,3135.4,10.9334463]
[1768313192918,0.0008056,3136.0,3135.5,7.49606776]
[1768313193116,0.001,3136.1,3135.8,7.49606776]
[1768313193317,0.001,3136.1,3135.8,10.68495177]
[1768313194212,0.001,3136.1,3135.9,0.248]
[1768313195709,0.001,3136.1,3135.7,0.248]
[1768313196018,0.001,3136.1,3135.6,0.24880568]
[1768313196219,0.001,3136.1,3135.6,6.99733643]
[1768313196632,0.001,3136.1,3135.6,10.18650603]
[1768313196834,0.001,3136.1,3135.6,9.93850603]
[1768313197030,0.001,3136.1,3135.6,10.18650603]
[1768313197533,0.001,3136.1,3135.7,9.93761133]
[1768313197903,0.001,3136.1,3135.8,6.74853075]
[1768313199134,0.00080392,3136.6,3136.1,6.74853075]
[1768313199342,0.00080392,3136.6,3135.7,6.37816116]
[1768313199343,3.18897245,3136.6,3135.9,0.99376113]
[1768313199505,7.39895863,3136.5,3135.9,0.248]
[1768313200943,7.39895863,3136.5,3135.9,3.43686138]
[1768313201306,0.00080392,3136.6,3135.9,3.43686138]
[1768313201502,0.00080392,3136.6,3136.0,6.74853075]
[1768313203232,0.00080392,3136.6,3136.2,6.74853075]
[1768313203405,0.00080392,3136.6,3136.2,7.44818383]
[1768313203734,0.00080392,3136.6,3136.3,3.18847049]
[1768313204045,0.00080392,3136.6,3136.2,10.63671235]
[1768313204752,0.00080392,3136.6,3136.2,7.44818383]
[1768313205052,0.00080392,3136.6,3136.2,0.69965308]
[1768313205429,0.00080392,3136.6,3136.3,0.248]
[1768313206433,0.00080392,3136.6,3136.3,3.43646332]
[1768313206632,0.00080392,3136.6,3136.3,4.37311234]
[1768313206960,0.00080392,3136.6,3136.3,1.18464902]
[1768313207125,0.00080392,3136.6,3136.3,4.37311475]
[1768313207657,10.587763,3137.0,3136.4,4.88045766]
[1768313207658,0.001,3137.0,3136.4,4.88045766]
[1768313208530,0.001,3137.0,3136.4,5.58011074]
[1768313208729,10.58600646,3137.7,3136.6,6.74853075]
[1768313209041,10.58600646,3137.7,3136.4,0.69965308]
[1768313209042,7.39895863,3137.6,3136.7,0.248]
[1768313209247,8.45763974,3137.6,3136.7,5.12845766]
[1768313209650,11.64482828,3137.6,3136.9,8.06829593]
[1768313209835,4.24586965,3137.6,3136.9,8.06829593]
[1768313210040,7.43305819,3137.6,3136.9,4.88045766]
[1768313210241,7.39895863,3137.5,3136.8,0.248]
[1768313210440,8.14226445,3137.5,3136.6,3.4361644]
[1768313210753,8.14226445,3137.5,3136.7,0.248]
[1768313211085,8.14226445,3137.5,3136.7,8.31651701]
[1768313211375,8.14226445,3137.5,3136.9,4.88045766]
[1768313211757,3.18735258,3137.4,3136.9,4.88045766]
[1768313212276,6.37470516,3137.4,3136.6,11.62898841]
[1768313212476,7.39895863,3137.3,3136.7,0.248]
[1768313212868,7.39895863,3137.3,3136.3,3.18837333]
[1768313213165,7.39895863,3137.3,3136.4,3.43635842]
[1768313213372,7.39895863,3137.3,3136.5,3.18826645]
[1768313213573,7.39895863,3137.3,3136.4,8.31680189]
[1768313214650,3.18755578,3137.2,3136.4,8.31680189]
[1768313215078,3.18755578,3137.2,3136.4,8.06880189]
[1768313215380,3.18755578,3137.2,3136.4,8.31680189]
[1768313215755,7.83316238,3137.2,3136.4,5.12845766]
[1768313215961,15.23212101,3137.2,3136.4,5.12845766]
[1768313216279,12.04456523,3137.2,3136.4,8.31682583]
[1768313216448,15.23212101,3137.2,3136.4,5.12845766]
[1768313216844,15.23212101,3137.2,3136.4,4.88045766]
[1768313217070,15.23212101,3137.2,3136.4,8.31680147]
[1768313217454,12.04456523,3137.2,3136.4,8.31680147]
[1768313217793,3.18750594,3137.3,3136.6,11.62898841]
[1768313217988,3.18750594,3137.3,3136.7,6.74853075]
[1768313218289,3.9306245,3137.5,3136.8,6.74853075]
[1768313218456,3.18731868,3137.5,3136.8,6.74853075]
[1768313219119,3.18718077,3137.6,3136.8,6.74853075]
[1768313219323,0.29766596,3137.5,3136.9,0.248]
[1768313219525,3.18718077,3137.6,3136.9,0.248]
[1768313219825,6.37436154,3137.6,3136.9,0.248]
[1768313220699,6.37436154,3137.6,3136.8,6.74853075]
[1768313221026,3.18708872,3137.7,3137.0,6.74853075]
[1768313221195,6.43080464,3137.8,3137.2,3.18755578]
[1768313221397,0.00080464,3137.8,3137.3,4.88045766]
[1768313221590,3.18775725,3137.8,3137.3,4.88045766]
[1768313221792,7.39895863,3137.7,3136.7,6.74853075]
[1768313221991,7.39895863,3137.7,3136.9,3.18778849]
[1768313222297,7.39895863,3137.7,3136.9,3.43580463]
[1768313222505,7.39895863,3137.7,3136.9,0.248]
[1768313223229,7.39895863,3137.3,3136.5,3.18822227]
[1768313223401,7.39895863,3137.3,3136.8,0.002]
[1768313224332,7.39895863,3137.2,3136.8,0.002]
[1768313224534,4.88045766,3136.9,3136.2,0.000804]
[1768313224693,1.22794163,3136.8,3136.2,0.248804]
[1768313224898,7.39895863,3136.9,3136.2,0.248804]
[1768313225226,10.58691599,3136.9,3136.2,0.248804]
[1768313225597,3.18795736,3136.9,3136.2,3.43737428]
[1768313226118,12.04911943,3136.8,3136.2,0.000804]
[1768313226431,9.01116519,3136.7,3136.2,0.000804]
[1768313226952,12.3471189,3136.6,3136.2,0.000804]
[1768313227249,3.18836883,3136.4,3136.2,0.000804]
[1768313228153,6.37673766,3136.4,3136.2,0.000804]
[1768313229047,6.37673766,3136.4,3135.9,0.002]
[1768313229251,0.63767377,3136.3,3135.9,0.002]
[1768313229644,3.82619959,3136.3,3135.9,0.002]
[1768313229953,14.18338718,3136.3,3135.9,0.002]
[1768313231330,10.99486136,3136.3,3135.9,0.002]
[1768313232461,7.16866177,3136.2,3135.6,0.24960808]
[1768313232871,7.16866177,3136.2,3135.6,8.3192364]
[1768313233027,9.6190113,3136.6,3135.8,4.88045766]
[1768313233232,9.6190113,3136.6,3136.0,4.88045766]
[1768313233433,9.6190113,3136.6,3135.8,4.88045766]
[1768313233649,7.16866177,3136.5,3135.8,4.91234744]
[1768313233848,7.16866177,3136.5,3135.8,8.06937225]
[1768313234062,7.16866177,3136.5,3135.9,0.03188877]
[1768313234298,7.16866177,3136.5,3136.0,4.88045766]
[1768313234798,7.16866177,3136.5,3136.1,0.03188673]
[1768313234986,7.16866177,3136.5,3136.0,4.88045766]
[1768313235174,7.16866177,3136.5,3136.3,0.002]
[1768313235708,7.05367851,3136.4,3136.3,0.002]
[1768313236589,6.430804,3136.6,3136.3,0.002]
[1768313236590,9.61903447,3136.6,3136.3,0.002]
[1768313236895,3.18903447,3136.6,3136.3,0.002]
[1768313237061,0.000804,3136.6,3136.3,0.002]
[1768313237580,3.18755578,3137.2,3136.4,4.88045766]
[1768313237777,3.187759,3137.0,3136.4,11.8993923]
[1768313238161,3.187759,3137.0,3136.4,7.01893464]
[1768313239758,3.18770501,3137.1,3136.4,10.20728199]
[1768313239953,3.18760431,3137.2,3136.5,7.01893464]
[1768313240158,3.18760431,3137.2,3136.7,7.01893464]
[1768313240459,6.43,3137.3,3136.7,7.01893464]
[1768313240460,9.61748711,3137.3,3136.7,7.01893464]
[1768313240660,3.18739259,3137.4,3136.8,11.8993923]
[1768313240862,3.18729918,3137.5,3136.8,11.8993923]
[1768313241082,6.37459836,3137.5,3136.8,11.8993923]
[1768313241585,3.18729918,3137.5,3136.8,11.8993923]
[1768313242001,3.18717828,3137.6,3136.8,11.8993923]
[1768313242303,3.18717828,3137.6,3136.9,7.01893464]
[1768313242469,3.18717828,3137.6,3137.0,11.89744394]
[1768313242673,3.18717828,3137.6,3137.0,7.01893464]
[1768313245023,5.90271785,3137.7,3136.9,0.44636287]
[1768313245171,4.8785093,3137.4,3136.4,7.01893464]
[1768313245373,4.8785093,3137.4,3136.4,0.248]
[1768313245374,7.51873927,3137.3,3136.4,0.248]
[1768313245571,7.03088834,3137.3,3136.4,3.43628928]
[1768313246777,4.8785093,3137.0,3136.3,0.002]
[1768313247005,6.37572124,3136.9,3136.3,0.002]
[1768313247307,3.18786062,3136.9,3136.3,0.002]
[1768313247525,6.37572124,3136.9,3136.3,0.002]
[1768313253017,14.06697187,3136.9,3136.3,0.002]
[1768313253210,11.93218781,3136.8,3136.3,0.002]
[1768313253405,7.05367851,3136.7,3136.2,0.00080408]
[1768313254402,10.24182273,3136.7,3136.2,0.00080408]
[1768313254919,13.42996695,3136.7,3136.2,0.00080408]
[1768313255120,1.3429967,3136.6,3136.2,0.00080408]
[1768313256489,4.53119085,3136.6,3136.2,0.00080408]
[1768313258606,3.18819415,3136.6,3136.2,0.00080408]
[1768313259534,3.18799407,3136.8,3136.2,6.44870618]
[1768313260451,3.18799407,3136.8,3136.5,6.4499021]
[1768313260636,3.18765739,3137.1,3136.5,6.4499021]
[1768313260838,0.29805541,3137.0,3136.5,6.4499021]
[1768313261043,3.18765739,3137.1,3136.5,6.4499021]
[1768313261338,13.30480688,3136.9,3136.5,0.002]
[1768313262516,6.37572124,3136.9,3136.5,0.002]
[1768313262715,3.18786062,3136.9,3136.5,0.002]
[1768313263723,6.375518,3137.0,3136.5,0.002]
[1768313263921,0.29819998,3136.9,3136.5,0.002]
[1768313264116,7.5996973,3137.0,3136.5,0.002]
[1768313264343,0.29823955,3136.9,3136.5,0.002]
[1768313264538,7.5996973,3137.0,3136.5,0.002]
[1768313264773,0.29823896,3136.9,3136.5,6.4499021]
[1768313264980,4.4119383,3137.0,3136.5,6.4499021]
[1768313264981,3.187759,3137.0,3136.5,6.4499021]
[1768313265345,6.375518,3137.0,3136.5,6.4499021]
[1768313265965,3.187759,3137.0,3136.5,6.4499021]
[1768313268709,0.001,3137.2,3136.5,6.4499021]
[1768313268858,0.29832607,3137.1,3136.6,7.11769231]
[1768313269183,6.37619622,3137.2,3136.6,7.11769231]
[1768313269365,0.29831348,3137.1,3136.6,6.4479021]
[1768313269571,13.30528186,3137.2,3136.6,0.248]
[1768313269759,0.29832166,3137.1,3136.6,0.248]
[1768313269944,13.30528186,3137.2,3136.6,0.248]
[1768313270146,0.29832165,3137.1,3136.6,0.248]
[1768313270358,13.30528186,3137.2,3136.6,0.248]
[1768313270572,0.29832072,3137.1,3136.6,0.248]
[1768313270776,13.30528186,3137.2,3136.6,0.248]
[1768313270943,0.29832072,3137.1,3136.6,0.248]
[1768313271147,13.30528186,3137.2,3136.6,0.248]
[1768313271344,0.2983373,3137.1,3136.6,0.248]
[1768313271574,13.30528186,3137.2,3136.6,1.23662569]
[1768313271805,0.29833732,3137.1,3136.7,6.4479021]
[1768313272010,0.001,3137.2,3136.7,6.4479021]
[1768313272178,0.29833527,3137.1,3136.7,6.4479021]
[1768313272374,0.001,3137.2,3136.8,6.4479021]
[1768313272580,0.001,3137.2,3136.8,7.09557851]
[1768313273299,3.18856699,3137.2,3136.8,7.09557851]
[1768313273497,3.18856699,3137.2,3136.7,0.248]
[1768313274609,6.37613398,3137.2,3136.7,0.248]
[1768313274988,6.37613398,3137.2,3136.8,6.4479021]
[1768313274989,0.001,3137.2,3136.8,6.4479021]
[1768313275811,0.001,3137.2,3136.7,8.31638068]
[1768313276106,0.001,3137.2,3136.8,0.03187962]
[1768313276403,0.001,3137.2,3136.9,0.83482603]
[1768313276919,0.001,3137.2,3136.9,7.28272813]
[1768313277575,0.001,3137.2,3136.9,0.83482603]
[1768313277774,0.001,3137.2,3136.7,6.6959021]
[1768313278279,0.001,3137.2,3136.8,6.4479021]
[1768313281179,0.001,3137.2,3136.8,9.63583253]
[1768313281398,0.001,3137.2,3136.9,0.0318786]
[1768313281600,0.001,3137.2,3136.9,6.4797807]
[1768313281885,0.001,3137.2,3136.8,3.18793043]
[1768313281886,0.001,3137.2,3137.0,7.41467321]
[1768313286412,0.001,3137.2,3137.1,6.61022424]
[1768313288334,0.00080464,3137.8,3137.1,6.61022424]
[1768313288622,0.298166,3137.7,3137.2,6.61022424]
[1768313288822,0.00080464,3137.8,3137.2,6.61022424]
[1768313289026,0.00080464,3137.8,3137.3,7.27975523]
[1768313289625,0.00080464,3137.8,3137.3,0.66953099]
[1768313289786,0.00080464,3137.8,3137.4,0.248]
[1768313290191,0.00080464,3137.8,3136.9,9.79801877]
[1768313290192,6.59823918,3137.8,3136.9,9.79801877]
[1768313290391,6.59823918,3137.8,3137.0,1.22780188]
[1768313290813,6.59823918,3137.8,3137.0,4.41554325]
[1768313291615,9.78525143,3137.8,3137.1,9.79786213]
[1768313291793,12.97226368,3137.8,3137.1,6.61022424]
[1768313291995,12.97226368,3137.8,3137.1,0.65650022]
[1768313292196,12.97226368,3137.8,3137.1,0.90450022]
[1768313293091,6.59743454,3138.4,3137.5,6.61022424]
[1768313293294,3.48445439,3138.3,3137.5,6.61022424]
[1768313293524,0.29801588,3138.2,3137.5,6.61022424]
[1768313293712,3.18674314,3138.0,3137.5,7.27132714]
[1768313294341,3.18667764,3138.1,3137.5,7.27132714]
[1768313295820,3.18645902,3138.3,3137.6,6.77021635]
[1768313296122,3.18635974,3138.4,3137.8,6.77021635]
[1768313296321,3.18635974,3138.4,3137.8,7.74541555]
[1768313297448,0.0008081,3138.6,3137.8,7.74541555]
[1768313297449,6.37307598,3138.6,3137.8,7.74541555]
[1768313297619,0.29780586,3138.5,3137.8,7.74541555]
[1768313297815,0.0008081,3138.6,3137.8,10.93236181]
[1768313298020,6.68429039,3138.6,3137.9,0.9091029]
[1768313299123,0.0008081,3138.6,3137.9,7.67931925]
[1768313300149,0.0008081,3138.6,3138.0,7.01821635]
[1768313301151,3.18648308,3139.1,3138.4,6.77021635]
[1768313301356,0.00080456,3139.1,3138.5,0.248]
[1768313301529,6.68348229,3139.0,3138.3,0.248]
[1768313302073,6.68348229,3139.0,3138.1,3.18660126]
[1768313302074,6.68348229,3139.0,3138.1,0.248]
[1768313302434,6.68348229,3139.0,3138.1,3.4345602]
[1768313302648,6.68348229,3139.0,3138.2,3.18650114]
[1768313302972,6.68348229,3139.0,3138.2,0.248]
[1768313303331,9.86928871,3139.0,3138.2,10.20469753]
[1768313303549,3.18647377,3139.1,3138.3,11.65054018]
[1768313303745,0.00080456,3139.1,3138.3,6.77021635]
[1768313304286,3.18643588,3139.1,3138.3,6.77021635]
[1768313304584,6.68348229,3139.0,3137.9,6.77021635]
[1768313304734,6.68348229,3139.0,3138.0,3.43467961]
[1768313304933,6.68348229,3139.0,3138.1,3.18661755]
[1768313305145,7.98903724,3138.9,3138.1,3.18661755]
[1768313305370,3.18593092,3138.8,3138.1,9.9568339]
[1768313305604,1.30555495,3138.9,3138.1,9.9568339]
[1768313306038,3.18572793,3139.0,3138.1,9.9568339]
[1768313306243,6.68348229,3138.9,3138.1,3.1866191]
[1768313307376,3.18572793,3139.0,3138.2,0.0318654]
[1768313307576,9.86993528,3139.1,3138.3,3.18643851]